[Event "*** Titled Tuesday Blitz"]
[Site "Chess.com"]
[Date "2020.04.28"]
[Round "6"]
[White "Fighter008"]
[Black "LikeWater"]
[Result "1-0"]
[WhiteElo "2526"]
[BlackElo "2741"]
[TimeControl "180+1"]
[EndTime "11:06:31 PDT"]
[Termination "Fighter008 won by resignation"]

1. e4 {[%clk 0:03:00.9]} 1... c5 {[%clk 0:03:00.2]} 2. Nf3 {[%clk 0:02:59.6]}
2... e6 {[%clk 0:03:00.8]} 3. d4 {[%clk 0:02:58.2]} 3... cxd4 {[%clk 0:03:01.7]}
4. Nxd4 {[%clk 0:02:58.2]} 4... Nc6 {[%clk 0:03:02.1]} 5. Nc3 {[%clk 0:02:57.3]}
5... Qc7 {[%clk 0:03:02.5]} 6. Be3 {[%clk 0:02:56.9]} 6... Nf6 {[%clk
0:03:02.7]} 7. Qf3 {[%clk 0:02:56.8]} 7... Be7 {[%clk 0:03:02.5]} 8. O-O-O
{[%clk 0:02:55.5]} 8... O-O {[%clk 0:03:02.8]} 9. Be2 {[%clk 0:02:34.2]} 9...
Nxd4 {[%clk 0:03:02.5]} 10. Bxd4 {[%clk 0:02:33.9]} 10... e5 {[%clk 0:03:03]}
11. Be3 {[%clk 0:02:33.3]} 11... d6 {[%clk 0:02:56.7]} 12. h3 {[%clk 0:02:33.1]}
12... Be6 {[%clk 0:02:43.2]} 13. g4 {[%clk 0:02:26]} 13... Rfc8 {[%clk
0:02:34.4]} 14. g5 {[%clk 0:02:25.8]} 14... Nd7 {[%clk 0:02:34]} 15. Bd3 {[%clk
0:02:25.7]} 15... b5 {[%clk 0:02:12.9]} 16. Kb1 {[%clk 0:02:20.8]} 16... Nc5
{[%clk 0:01:52.7]} 17. Bc1 {[%clk 0:02:09.5]} 17... Nxd3 {[%clk 0:01:50.3]} 18.
Qxd3 {[%clk 0:02:09.2]} 18... b4 {[%clk 0:01:42.7]} 19. Nd5 {[%clk 0:02:07.4]}
19... Bxd5 {[%clk 0:01:42.3]} 20. exd5 {[%clk 0:02:08.3]} 20... a5 {[%clk
0:01:26]} 21. h4 {[%clk 0:02:07.3]} 21... a4 {[%clk 0:01:15.2]} 22. h5 {[%clk
0:02:04.8]} 22... b3 {[%clk 0:01:15.8]} 23. cxb3 {[%clk 0:02:03.7]} 23... axb3
{[%clk 0:01:16.7]} 24. Qxb3 {[%clk 0:02:03.8]} 24... Qa5 {[%clk 0:01:06.5]} 25.
a3 {[%clk 0:01:37.9]} 25... Rcb8 {[%clk 0:01:06]} 26. Qd3 {[%clk 0:01:36.8]}
26... Qa4 {[%clk 0:00:26.7]} 27. g6 {[%clk 0:01:32.6]} 27... Rb3 {[%clk
0:00:26.8]} 28. gxf7+ {[%clk 0:01:29.1]} 28... Kh8 {[%clk 0:00:27.1]} 29. Qf5
{[%clk 0:01:14.3]} 29... Qxa3 {[%clk 0:00:27.2]} 30. Qd7 {[%clk 0:01:02.9]}
30... Bf8 {[%clk 0:00:12.7]} 31. h6 {[%clk 0:00:58.3]} 31... Qa2+ {[%clk
0:00:07.1]} 32. Kc2 {[%clk 0:00:58]} 32... Rbb8 {[%clk 0:00:06.3]} 33. hxg7+
{[%clk 0:00:53.3]} 33... Bxg7 {[%clk 0:00:07.2]} 34. Rxh7+ {[%clk 0:00:52.2]}
34... Kxh7 {[%clk 0:00:08.1]} 35. Qf5+ {[%clk 0:00:51.7]} 35... Kh8 {[%clk
0:00:07.5]} 36. Rh1+ {[%clk 0:00:51.5]} 1-0

[Event "*** Titled Tuesday Blitz"]
[Site "Chess.com"]
[Date "2020.04.28"]
[Round "6"]
[White "TheMightyBishops"]
[Black "Xeniya2005"]
[Result "0-1"]
[WhiteElo "2002"]
[BlackElo "2257"]
[TimeControl "180+1"]
[EndTime "11:06:32 PDT"]
[Termination "Xeniya2005 won by checkmate"]

1. e4 {[%clk 0:03:00.7]} 1... c5 {[%clk 0:02:59.9]} 2. c4 {[%clk 0:02:59.8]}
2... Nc6 {[%clk 0:02:59.5]} 3. Nc3 {[%clk 0:02:59.9]} 3... g6 {[%clk 0:02:58.8]}
4. g3 {[%clk 0:02:59.5]} 4... Bg7 {[%clk 0:02:58.6]} 5. Bg2 {[%clk 0:02:59.4]}
5... d6 {[%clk 0:02:58.3]} 6. h3 {[%clk 0:02:59.3]} 6... e5 {[%clk 0:02:58.2]}
7. Rb1 {[%clk 0:02:58.2]} 7... Nge7 {[%clk 0:02:58]} 8. d3 {[%clk 0:02:57.5]}
8... O-O {[%clk 0:02:57]} 9. Be3 {[%clk 0:02:57]} 9... Be6 {[%clk 0:02:56.3]}
10. Qd2 {[%clk 0:02:56.8]} 10... Qd7 {[%clk 0:02:54.2]} 11. Nge2 {[%clk
0:02:55.2]} 11... f5 {[%clk 0:02:49.4]} 12. Bh6 {[%clk 0:02:46.5]} 12... Nd4
{[%clk 0:02:39]} 13. Bxg7 {[%clk 0:02:43.7]} 13... Kxg7 {[%clk 0:02:38.8]} 14.
Nd5 {[%clk 0:02:42.6]} 14... Bxd5 {[%clk 0:02:30.8]} 15. cxd5 {[%clk 0:02:39.7]}
15... Nxe2 {[%clk 0:02:22.6]} 16. Qxe2 {[%clk 0:02:39.3]} 16... Rae8 {[%clk
0:02:21]} 17. O-O {[%clk 0:02:35.7]} 17... b5 {[%clk 0:02:19.4]} 18. Qd2 {[%clk
0:02:30.4]} 18... Ng8 {[%clk 0:02:16.7]} 19. a3 {[%clk 0:02:28.5]} 19... f4
{[%clk 0:02:14.7]} 20. b4 {[%clk 0:02:23.1]} 20... f3 {[%clk 0:01:53.8]} 21.
bxc5 {[%clk 0:02:21.7]} 21... fxg2 {[%clk 0:01:52.7]} 22. Kxg2 {[%clk
0:02:21.6]} 22... dxc5 {[%clk 0:01:52.6]} 23. Qc3 {[%clk 0:02:18.3]} 23... Nf6
{[%clk 0:01:43.8]} 24. f4 {[%clk 0:02:13.5]} 24... exf4 {[%clk 0:01:27.6]} 25.
gxf4 {[%clk 0:02:10.6]} 25... Kg8 {[%clk 0:01:25.4]} 26. Qxc5 {[%clk 0:02:06.3]}
26... Nh5 {[%clk 0:01:22]} 27. Qc6 {[%clk 0:01:53.9]} 27... Qxc6 {[%clk
0:01:18.2]} 28. dxc6 {[%clk 0:01:53.6]} 28... Nxf4+ {[%clk 0:01:18.6]} 29. Kg3
{[%clk 0:01:47]} 29... Nxd3 {[%clk 0:01:18.5]} 30. Rfd1 {[%clk 0:01:47.1]} 30...
Ne5 {[%clk 0:01:15.4]} 31. Rd5 {[%clk 0:01:45.8]} 31... Nxc6 {[%clk 0:01:13.5]}
32. Rbxb5 {[%clk 0:01:45.7]} 32... Rxe4 {[%clk 0:01:11.2]} 33. Rbc5 {[%clk
0:01:39.6]} 33... Ne7 {[%clk 0:01:08]} 34. Rd7 {[%clk 0:01:39.3]} 34... Nf5+
{[%clk 0:01:05.2]} 35. Kg2 {[%clk 0:01:38.5]} 35... Nh4+ {[%clk 0:01:03.1]} 36.
Kg1 {[%clk 0:01:33.4]} 36... Re1+ {[%clk 0:00:57.7]} 37. Kh2 {[%clk 0:01:31.3]}
37... Re2+ {[%clk 0:00:49.1]} 38. Kg3 {[%clk 0:01:28.7]} 38... Nf5+ {[%clk
0:00:41.4]} 39. Kf3 {[%clk 0:01:28.6]} 39... Re3+ {[%clk 0:00:41.1]} 40. Kf2
{[%clk 0:01:28.2]} 40... Re7 {[%clk 0:00:39.5]} 41. Rd2 {[%clk 0:01:18.9]} 41...
Nd6+ {[%clk 0:00:32.5]} 42. Kg3 {[%clk 0:01:12.8]} 42... Ne4+ {[%clk 0:00:32.4]}
43. Kh4 {[%clk 0:01:12.1]} 43... Nxd2 {[%clk 0:00:33.3]} 44. Ra5 {[%clk
0:01:11.7]} 44... Kg7 {[%clk 0:00:32.5]} 45. a4 {[%clk 0:01:11]} 45... Ne4
{[%clk 0:00:32.6]} 46. Ra6 {[%clk 0:01:10.6]} 46... Rf4# {[%clk 0:00:32.7]} 0-1

[Event "*** Titled Tuesday Blitz"]
[Site "Chess.com"]
[Date "2020.04.28"]
[Round "6"]
[White "Trankuilizer"]
[Black "AtabayevSaparmyrat"]
[Result "1-0"]
[WhiteElo "2508"]
[BlackElo "2661"]
[TimeControl "180+1"]
[EndTime "11:06:36 PDT"]
[Termination "Trankuilizer won on time"]

1. e4 {[%clk 0:03:00.9]} 1... c5 {[%clk 0:02:59.5]} 2. c3 {[%clk 0:03:00.4]}
2... Nf6 {[%clk 0:02:58.9]} 3. e5 {[%clk 0:03:00.6]} 3... Nd5 {[%clk 0:02:59.3]}
4. d4 {[%clk 0:03:01.3]} 4... d6 {[%clk 0:02:58.3]} 5. Nf3 {[%clk 0:02:59.5]}
5... cxd4 {[%clk 0:02:58.4]} 6. cxd4 {[%clk 0:02:59.1]} 6... Nc6 {[%clk
0:02:58.8]} 7. Bc4 {[%clk 0:02:58.3]} 7... e6 {[%clk 0:02:59.1]} 8. O-O {[%clk
0:02:57]} 8... Be7 {[%clk 0:02:59.4]} 9. Qe2 {[%clk 0:02:57.3]} 9... O-O {[%clk
0:02:59.4]} 10. Nc3 {[%clk 0:02:57.8]} 10... Nxc3 {[%clk 0:02:54.3]} 11. bxc3
{[%clk 0:02:58.7]} 11... b6 {[%clk 0:02:40.6]} 12. Bf4 {[%clk 0:02:52]} 12...
Bb7 {[%clk 0:02:36.2]} 13. Rad1 {[%clk 0:02:51.2]} 13... dxe5 {[%clk 0:02:22.8]}
14. dxe5 {[%clk 0:02:43.5]} 14... Qc7 {[%clk 0:02:22.8]} 15. Bd3 {[%clk
0:02:44.1]} 15... Na5 {[%clk 0:02:12.5]} 16. Ng5 {[%clk 0:02:33.8]} 16... Bxg5
{[%clk 0:01:38.2]} 17. Bxg5 {[%clk 0:02:33.5]} 17... Bd5 {[%clk 0:01:16.5]} 18.
Rfe1 {[%clk 0:01:14.8]} 18... Bc4 {[%clk 0:01:13.4]} 19. Bxh7+ {[%clk
0:00:46.6]} 19... Kxh7 {[%clk 0:01:05.6]} 20. Qh5+ {[%clk 0:00:46.8]} 20... Kg8
{[%clk 0:01:05.3]} 21. Bf6 {[%clk 0:00:47.4]} 21... gxf6 {[%clk 0:00:28.3]} 22.
Qg4+ {[%clk 0:00:43.1]} 22... Kh7 {[%clk 0:00:12.9]} 23. Re3 {[%clk 0:00:38.1]}
23... Qxe5 {[%clk 0:00:05.5]} 24. Rh3+ {[%clk 0:00:35.6]} 1-0

[Event "*** Titled Tuesday Blitz"]
[Site "Chess.com"]
[Date "2020.04.28"]
[Round "6"]
[White "Diego_FloresQ"]
[Black "eldur16"]
[Result "0-1"]
[WhiteElo "2421"]
[BlackElo "2585"]
[TimeControl "180+1"]
[EndTime "11:06:37 PDT"]
[Termination "eldur16 won by resignation"]

1. e4 {[%clk 0:02:59.5]} 1... e5 {[%clk 0:02:59.5]} 2. Nf3 {[%clk 0:02:59.8]}
2... Nc6 {[%clk 0:02:59.6]} 3. Bb5 {[%clk 0:03:00.2]} 3... a6 {[%clk 0:02:59.7]}
4. Ba4 {[%clk 0:03:00.2]} 4... Nf6 {[%clk 0:02:59.6]} 5. O-O {[%clk 0:03:00.5]}
5... Be7 {[%clk 0:02:59.5]} 6. Re1 {[%clk 0:03:00.9]} 6... b5 {[%clk 0:02:59.1]}
7. Bb3 {[%clk 0:03:00.7]} 7... d6 {[%clk 0:02:59.3]} 8. c3 {[%clk 0:02:51]} 8...
O-O {[%clk 0:02:58.8]} 9. h3 {[%clk 0:02:51.1]} 9... Na5 {[%clk 0:02:58.1]} 10.
Bc2 {[%clk 0:02:51.1]} 10... c5 {[%clk 0:02:59]} 11. d4 {[%clk 0:02:51.5]} 11...
Qc7 {[%clk 0:02:58.3]} 12. Nbd2 {[%clk 0:02:50.2]} 12... Bd7 {[%clk 0:02:57.9]}
13. dxe5 {[%clk 0:02:49]} 13... dxe5 {[%clk 0:02:57.4]} 14. Nf1 {[%clk
0:02:49.2]} 14... Nc4 {[%clk 0:02:55.1]} 15. b3 {[%clk 0:02:46.8]} 15... Nb6
{[%clk 0:02:54.9]} 16. Ne3 {[%clk 0:02:45.6]} 16... g6 {[%clk 0:02:49.8]} 17.
Nd5 {[%clk 0:02:40.2]} 17... Nfxd5 {[%clk 0:02:45.1]} 18. exd5 {[%clk
0:02:39.7]} 18... f6 {[%clk 0:02:44.1]} 19. Bh6 {[%clk 0:02:35.8]} 19... Rfe8
{[%clk 0:02:42.9]} 20. Qd2 {[%clk 0:02:33.9]} 20... Nc8 {[%clk 0:02:41.6]} 21.
Nh4 {[%clk 0:02:29.6]} 21... f5 {[%clk 0:02:28.3]} 22. Bg5 {[%clk 0:02:28.6]}
22... e4 {[%clk 0:02:18.5]} 23. Bxe7 {[%clk 0:02:18.4]} 23... Rxe7 {[%clk
0:02:18]} 24. f3 {[%clk 0:01:43.9]} 24... Qg3 {[%clk 0:02:09.9]} 25. Qh6 {[%clk
0:01:43.7]} 25... Nd6 {[%clk 0:02:07.5]} 26. fxe4 {[%clk 0:01:34.1]} 26... fxe4
{[%clk 0:02:03]} 27. Re3 {[%clk 0:01:25]} 27... Qe5 {[%clk 0:02:00]} 28. Rf1
{[%clk 0:01:23]} 28... Rae8 {[%clk 0:01:51.6]} 29. Kh1 {[%clk 0:01:13.3]} 29...
Rf7 {[%clk 0:01:49.8]} 30. Rfe1 {[%clk 0:01:03.8]} 30... Ref8 {[%clk 0:01:47.7]}
31. Nf3 {[%clk 0:01:00.9]} 31... Qg3 {[%clk 0:01:36.4]} 32. Bxe4 {[%clk
0:00:51.4]} 32... Nxe4 {[%clk 0:01:34.6]} 33. Rxe4 {[%clk 0:00:51.1]} 33... Rxf3
{[%clk 0:01:21.6]} 34. gxf3 {[%clk 0:00:51]} 34... Bxh3 {[%clk 0:01:12.4]} 35.
R4e2 {[%clk 0:00:45]} 35... Bg2+ {[%clk 0:01:05.3]} 36. Rxg2 {[%clk 0:00:38.7]}
36... Qxe1+ {[%clk 0:01:05]} 37. Rg1 {[%clk 0:00:38.3]} 37... Qe5 {[%clk
0:00:54.6]} 38. Rg5 {[%clk 0:00:35.2]} 38... Qxc3 {[%clk 0:00:48.7]} 39. d6
{[%clk 0:00:28.2]} 39... Qxf3+ {[%clk 0:00:47.3]} 40. Rg2 {[%clk 0:00:28.1]}
40... Qd1+ {[%clk 0:00:46.1]} 41. Rg1 {[%clk 0:00:26.6]} 41... Qxd6 {[%clk
0:00:45.4]} 0-1

[Event "*** Titled Tuesday Blitz"]
[Site "Chess.com"]
[Date "2020.04.28"]
[Round "6"]
[White "cassoulet"]
[Black "Trickov"]
[Result "1-0"]
[WhiteElo "2584"]
[BlackElo "2267"]
[TimeControl "180+1"]
[EndTime "11:06:37 PDT"]
[Termination "cassoulet won by resignation"]

1. e4 {[%clk 0:03:00.9]} 1... c5 {[%clk 0:02:57.1]} 2. Nc3 {[%clk 0:03:00.7]}
2... Nc6 {[%clk 0:02:56.5]} 3. f4 {[%clk 0:03:01.2]} 3... g6 {[%clk 0:02:56.6]}
4. Nf3 {[%clk 0:03:01.4]} 4... Bg7 {[%clk 0:02:57.1]} 5. Bb5 {[%clk 0:03:01.2]}
5... Nd4 {[%clk 0:02:57.5]} 6. Nxd4 {[%clk 0:03:00.3]} 6... cxd4 {[%clk
0:02:57]} 7. Ne2 {[%clk 0:02:59.3]} 7... e6 {[%clk 0:02:55.8]} 8. O-O {[%clk
0:02:57.6]} 8... Ne7 {[%clk 0:02:54.9]} 9. d3 {[%clk 0:02:54.6]} 9... a6 {[%clk
0:02:54]} 10. Ba4 {[%clk 0:02:53.7]} 10... O-O {[%clk 0:02:51.2]} 11. Bb3 {[%clk
0:02:53.4]} 11... d6 {[%clk 0:02:46.9]} 12. Qe1 {[%clk 0:02:52.5]} 12... Bd7
{[%clk 0:02:45.8]} 13. Qh4 {[%clk 0:02:42.3]} 13... Nc6 {[%clk 0:02:44.3]} 14.
Qh3 {[%clk 0:02:39.9]} 14... Na5 {[%clk 0:02:42.6]} 15. f5 {[%clk 0:02:37.3]}
15... exf5 {[%clk 0:02:37.8]} 16. exf5 {[%clk 0:02:36.2]} 16... Nxb3 {[%clk
0:02:37.4]} 17. axb3 {[%clk 0:02:35.8]} 17... Rc8 {[%clk 0:02:34.5]} 18. Bh6
{[%clk 0:02:27.3]} 18... Qf6 {[%clk 0:02:12.8]} 19. Bxg7 {[%clk 0:02:09.1]}
19... Kxg7 {[%clk 0:02:08.2]} 20. Ng3 {[%clk 0:01:12.2]} 20... d5 {[%clk
0:01:42.6]} 21. Rf2 {[%clk 0:01:06.6]} 21... Rfe8 {[%clk 0:01:28.1]} 22. Raf1
{[%clk 0:00:58.7]} 22... Re5 {[%clk 0:01:26.9]} 23. Qg4 {[%clk 0:00:51.1]} 23...
Qb6 {[%clk 0:00:34.9]} 24. f6+ {[%clk 0:00:49.3]} 24... Kg8 {[%clk 0:00:28.2]}
25. Qxd7 {[%clk 0:00:47.7]} 25... Rd8 {[%clk 0:00:28]} 26. Qh3 {[%clk
0:00:45.3]} 26... Qd6 {[%clk 0:00:25]} 27. Qh6 {[%clk 0:00:37.2]} 27... Qf8
{[%clk 0:00:24.9]} 28. Qxf8+ {[%clk 0:00:33.5]} 28... Kxf8 {[%clk 0:00:22.5]}
29. Re2 {[%clk 0:00:34.4]} 29... Rde8 {[%clk 0:00:20.8]} 30. Rfe1 {[%clk
0:00:33.6]} 1-0

[Event "*** Titled Tuesday Blitz"]
[Site "Chess.com"]
[Date "2020.04.28"]
[Round "6"]
[White "LionTheLeon_06"]
[Black "BocharovD"]
[Result "0-1"]
[WhiteElo "2652"]
[BlackElo "2802"]
[TimeControl "180+1"]
[EndTime "11:06:39 PDT"]
[Termination "BocharovD won on time"]

1. d4 {[%clk 0:03:00.9]} 1... Nf6 {[%clk 0:02:59.5]} 2. c4 {[%clk 0:03:01.1]}
2... e6 {[%clk 0:03:00.1]} 3. Nc3 {[%clk 0:03:01.5]} 3... Bb4 {[%clk 0:03:00.2]}
4. e3 {[%clk 0:03:02]} 4... O-O {[%clk 0:02:59.8]} 5. Bd3 {[%clk 0:03:02.3]}
5... d5 {[%clk 0:02:59.1]} 6. a3 {[%clk 0:03:02.2]} 6... Bxc3+ {[%clk
0:02:55.8]} 7. bxc3 {[%clk 0:03:03.1]} 7... c6 {[%clk 0:02:56]} 8. Ne2 {[%clk
0:03:02]} 8... b6 {[%clk 0:02:56.4]} 9. O-O {[%clk 0:03:01.7]} 9... Ba6 {[%clk
0:02:56.1]} 10. cxd5 {[%clk 0:03:02.1]} 10... cxd5 {[%clk 0:02:56.2]} 11. Bxa6
{[%clk 0:03:01.6]} 11... Nxa6 {[%clk 0:02:56.3]} 12. Qd3 {[%clk 0:03:02.3]}
12... Qc8 {[%clk 0:02:55.7]} 13. f3 {[%clk 0:03:00.8]} 13... Nc7 {[%clk
0:02:49.1]} 14. e4 {[%clk 0:02:59.8]} 14... Qa6 {[%clk 0:02:47.1]} 15. Qc2
{[%clk 0:02:47.7]} 15... Rfc8 {[%clk 0:02:38.9]} 16. Bg5 {[%clk 0:02:43.4]}
16... Nce8 {[%clk 0:02:39]} 17. a4 {[%clk 0:02:36.6]} 17... Qc4 {[%clk
0:02:35.6]} 18. e5 {[%clk 0:02:26.9]} 18... Nd7 {[%clk 0:02:35.2]} 19. f4 {[%clk
0:02:23.8]} 19... f6 {[%clk 0:02:35.5]} 20. Bh4 {[%clk 0:02:19.2]} 20... f5
{[%clk 0:02:32.7]} 21. h3 {[%clk 0:02:11.6]} 21... Nc7 {[%clk 0:02:19.1]} 22. g4
{[%clk 0:02:00.5]} 22... Rf8 {[%clk 0:02:17.6]} 23. Be7 {[%clk 0:01:56.9]} 23...
Rf7 {[%clk 0:02:17.2]} 24. Bd6 {[%clk 0:01:56]} 24... Ne8 {[%clk 0:02:17.4]} 25.
Bb4 {[%clk 0:01:50.2]} 25... a5 {[%clk 0:02:07.8]} 26. Ba3 {[%clk 0:01:48.5]}
26... g6 {[%clk 0:02:08.4]} 27. Rab1 {[%clk 0:01:45.9]} 27... Ng7 {[%clk
0:02:06.8]} 28. Kg2 {[%clk 0:01:43.2]} 28... Rc8 {[%clk 0:02:06]} 29. Rb5 {[%clk
0:01:37.8]} 29... h6 {[%clk 0:01:59.5]} 30. Kg3 {[%clk 0:01:33.1]} 30... Kh7
{[%clk 0:01:56.6]} 31. Rbb1 {[%clk 0:01:19.4]} 31... Rg8 {[%clk 0:01:47.1]} 32.
Kh2 {[%clk 0:01:05.7]} 32... Rh8 {[%clk 0:01:35.6]} 33. Kg2 {[%clk 0:01:00.7]}
33... h5 {[%clk 0:01:32.8]} 34. g5 {[%clk 0:00:56.2]} 34... h4 {[%clk
0:01:32.6]} 35. Kf3 {[%clk 0:00:49.5]} 35... Rc8 {[%clk 0:01:31.1]} 36. Rb5
{[%clk 0:00:46.6]} 36... Nh5 {[%clk 0:01:30.8]} 37. Rfb1 {[%clk 0:00:43.4]}
37... Rc6 {[%clk 0:01:29.3]} 38. Bd6 {[%clk 0:00:34]} 38... Rg7 {[%clk
0:01:29.1]} 39. R5b2 {[%clk 0:00:30.8]} 39... Rg8 {[%clk 0:01:28.1]} 40. Ke3
{[%clk 0:00:26.2]} 40... Rgc8 {[%clk 0:01:26.7]} 41. Qb3 {[%clk 0:00:22.8]}
41... Ng3 {[%clk 0:01:21.2]} 42. Qxc4 {[%clk 0:00:09.1]} 42... Rxc4 {[%clk
0:01:22.1]} 43. Rb3 {[%clk 0:00:04.3]} 43... Rxa4 {[%clk 0:01:14.4]} 44. Nxg3
{[%clk 0:00:03.4]} 44... hxg3 {[%clk 0:01:14.2]} 45. Rg1 {[%clk 0:00:01]} 45...
Ra2 {[%clk 0:01:09.1]} 0-1

[Event "*** Titled Tuesday Blitz"]
[Site "Chess.com"]
[Date "2020.04.28"]
[Round "6"]
[White "SirStrateg"]
[Black "sergiochess83"]
[Result "0-1"]
[WhiteElo "2596"]
[BlackElo "2823"]
[TimeControl "180+1"]
[EndTime "11:06:39 PDT"]
[Termination "sergiochess83 won by resignation"]

1. d4 {[%clk 0:02:59]} 1... Nf6 {[%clk 0:02:59.4]} 2. Nf3 {[%clk 0:02:59.6]}
2... d5 {[%clk 0:02:59.1]} 3. c3 {[%clk 0:02:59]} 3... Bf5 {[%clk 0:02:55]} 4.
Bf4 {[%clk 0:02:57.6]} 4... e6 {[%clk 0:02:55.3]} 5. Nbd2 {[%clk 0:02:55.6]}
5... Bd6 {[%clk 0:02:51.5]} 6. e3 {[%clk 0:02:54.6]} 6... Bxf4 {[%clk
0:02:50.2]} 7. exf4 {[%clk 0:02:54.7]} 7... O-O {[%clk 0:02:51.1]} 8. Qb3 {[%clk
0:02:54.1]} 8... b6 {[%clk 0:02:50.5]} 9. a4 {[%clk 0:02:51.7]} 9... c5 {[%clk
0:02:49.5]} 10. a5 {[%clk 0:02:49]} 10... Nc6 {[%clk 0:02:47.5]} 11. a6 {[%clk
0:02:40.8]} 11... cxd4 {[%clk 0:02:45.9]} 12. Nxd4 {[%clk 0:02:37.1]} 12... Nxd4
{[%clk 0:02:45.2]} 13. cxd4 {[%clk 0:02:38]} 13... Rc8 {[%clk 0:02:45.6]} 14.
Be2 {[%clk 0:02:31.3]} 14... Qd6 {[%clk 0:01:36.1]} 15. g3 {[%clk 0:02:30.7]}
15... Rc2 {[%clk 0:01:35.5]} 16. Bd1 {[%clk 0:02:28]} 16... Rc7 {[%clk
0:01:33.5]} 17. Qa3 {[%clk 0:02:16.1]} 17... Qxa3 {[%clk 0:01:28.8]} 18. Rxa3
{[%clk 0:02:17]} 18... Rfc8 {[%clk 0:01:27.4]} 19. f3 {[%clk 0:02:17.1]} 19...
Ne8 {[%clk 0:01:18.3]} 20. Ke2 {[%clk 0:02:03.5]} 20... Nd6 {[%clk 0:01:17.6]}
21. Bb3 {[%clk 0:01:48.1]} 21... h5 {[%clk 0:01:10.2]} 22. h3 {[%clk 0:01:40.9]}
22... Kf8 {[%clk 0:00:54.3]} 23. g4 {[%clk 0:01:41.1]} 23... Bc2 {[%clk
0:00:52]} 24. Ba2 {[%clk 0:01:36.5]} 24... Nb5 {[%clk 0:00:48.4]} 25. Re3 {[%clk
0:01:27.5]} 25... Nxd4+ {[%clk 0:00:48.5]} 26. Kf2 {[%clk 0:01:27.9]} 26... Bg6
{[%clk 0:00:46.4]} 27. f5 {[%clk 0:01:26.6]} 27... exf5 {[%clk 0:00:46]} 28.
gxh5 {[%clk 0:01:27]} 28... Bxh5 {[%clk 0:00:43.2]} 29. Bxd5 {[%clk 0:01:27.6]}
29... Rd8 {[%clk 0:00:33.2]} 30. Bb7 {[%clk 0:01:22.2]} 30... Ne6 {[%clk
0:00:28.4]} 31. Nb3 {[%clk 0:01:11]} 31... Rc2+ {[%clk 0:00:21.2]} 32. Re2
{[%clk 0:01:11.1]} 32... Rxe2+ {[%clk 0:00:21.3]} 33. Kxe2 {[%clk 0:01:11.2]}
33... Ke7 {[%clk 0:00:15]} 34. h4 {[%clk 0:01:06.9]} 34... f6 {[%clk 0:00:15.1]}
35. Ke3 {[%clk 0:01:00.8]} 35... f4+ {[%clk 0:00:13.7]} 36. Ke2 {[%clk
0:00:58.1]} 36... Be8 {[%clk 0:00:13.6]} 37. h5 {[%clk 0:00:56.3]} 37... Ba4
{[%clk 0:00:13.2]} 38. Nd2 {[%clk 0:00:51.9]} 38... Bb5+ {[%clk 0:00:12.8]} 39.
Ke1 {[%clk 0:00:50.5]} 39... Nc5 {[%clk 0:00:13]} 40. h6 {[%clk 0:00:43.7]}
40... Nd3+ {[%clk 0:00:11.8]} 41. Kd1 {[%clk 0:00:43.7]} 41... Nf2+ {[%clk
0:00:11.5]} 0-1

[Event "*** Titled Tuesday Blitz"]
[Site "Chess.com"]
[Date "2020.04.28"]
[Round "6"]
[White "EnergeticHay"]
[Black "AquivaRubinstein"]
[Result "0-1"]
[WhiteElo "2212"]
[BlackElo "2420"]
[TimeControl "180+1"]
[EndTime "11:06:39 PDT"]
[Termination "AquivaRubinstein won on time"]

1. e4 {[%clk 0:02:52.6]} 1... c5 {[%clk 0:02:59.6]} 2. Nf3 {[%clk 0:02:52.4]}
2... Nf6 {[%clk 0:02:59.9]} 3. d4 {[%clk 0:02:52.8]} 3... Nxe4 {[%clk
0:02:59.4]} 4. Bd3 {[%clk 0:02:51.4]} 4... d5 {[%clk 0:02:59.6]} 5. c4 {[%clk
0:02:28.9]} 5... cxd4 {[%clk 0:02:53]} 6. cxd5 {[%clk 0:02:25.2]} 6... Qxd5
{[%clk 0:02:51.2]} 7. Nxd4 {[%clk 0:02:23.8]} 7... Bd7 {[%clk 0:02:36.1]} 8. Nf3
{[%clk 0:02:16.1]} 8... Nc6 {[%clk 0:02:34.4]} 9. O-O {[%clk 0:02:15.3]} 9... e6
{[%clk 0:02:34.3]} 10. Be3 {[%clk 0:02:14.5]} 10... Nc5 {[%clk 0:02:26.4]} 11.
Bxc5 {[%clk 0:02:07.1]} 11... Bxc5 {[%clk 0:02:23.5]} 12. Nc3 {[%clk 0:02:07.3]}
12... Qh5 {[%clk 0:02:20.2]} 13. Ne4 {[%clk 0:02:03.1]} 13... Be7 {[%clk
0:02:18.7]} 14. Qb3 {[%clk 0:01:58.7]} 14... b6 {[%clk 0:02:11.5]} 15. Rad1
{[%clk 0:01:52.3]} 15... O-O {[%clk 0:02:10.3]} 16. a3 {[%clk 0:01:46.8]} 16...
Na5 {[%clk 0:02:08.8]} 17. Qa2 {[%clk 0:01:39.4]} 17... Bc6 {[%clk 0:01:58.2]}
18. b4 {[%clk 0:01:28]} 18... Bd5 {[%clk 0:01:58.1]} 19. Qb1 {[%clk 0:01:26.2]}
19... Nc6 {[%clk 0:01:54.4]} 20. Ng3 {[%clk 0:01:23.2]} 20... Qh6 {[%clk
0:01:52.2]} 21. Rfe1 {[%clk 0:01:02.9]} 21... Rfd8 {[%clk 0:01:47]} 22. Ne5
{[%clk 0:00:46.6]} 22... Nxe5 {[%clk 0:01:44.6]} 23. Rxe5 {[%clk 0:00:47.5]}
23... a5 {[%clk 0:01:34.6]} 24. Rh5 {[%clk 0:00:46.6]} 24... Qf6 {[%clk
0:01:31]} 25. Bxh7+ {[%clk 0:00:44.4]} 25... Kf8 {[%clk 0:01:29.9]} 26. Be4
{[%clk 0:00:41.8]} 26... g6 {[%clk 0:01:29.9]} 27. Bxd5 {[%clk 0:00:40]} 27...
exd5 {[%clk 0:01:19.1]} 28. Rhxd5 {[%clk 0:00:40.6]} 28... Rxd5 {[%clk
0:01:16.3]} 29. Rxd5 {[%clk 0:00:41.5]} 29... axb4 {[%clk 0:01:16.3]} 30. Ne4
{[%clk 0:00:35.7]} 30... Qe6 {[%clk 0:01:12.6]} 31. Rb5 {[%clk 0:00:29.6]} 31...
bxa3 {[%clk 0:01:05.7]} 32. Rxb6 {[%clk 0:00:27.3]} 32... a2 {[%clk 0:01:03.7]}
33. Rb8+ {[%clk 0:00:22.6]} 33... Rxb8 {[%clk 0:01:00]} 34. Qxb8+ {[%clk
0:00:23.5]} 34... Kg7 {[%clk 0:01:00.4]} 35. Qb2+ {[%clk 0:00:13.4]} 35... Kh7
{[%clk 0:00:51.4]} 36. f3 {[%clk 0:00:10.5]} 36... f5 {[%clk 0:00:49.2]} 37. Ng3
{[%clk 0:00:03.9]} 37... Bc5+ {[%clk 0:00:39.6]} 38. Kf1 {[%clk 0:00:03.1]}
38... Qa6+ {[%clk 0:00:39.6]} 0-1